fUSD/lending_fUSD_20241119
["ID","MTS","AMOUNT","RATE_DAILY","PERIOD"]
[342693153,1732050659522,-500.0,0.00056712,120]
[342693154,1732050659532,-805.1,0.00056712,120]
[342693155,1732050659543,-500.0,0.00056712,120]
[342693156,1732050659554,-941.71,0.00056712,120]
[342693157,1732050659566,-500.0,0.00056712,120]
[342693158,1732050659576,-610.06,0.00056712,120]
[342693159,1732050659587,-500.0,0.00056712,120]
[342693160,1732050659600,-500.0,0.00056712,120]
[342693161,1732050659610,-500.0,0.00056712,120]
[342693162,1732050659619,-2000.0,0.00056712,120]
[342693163,1732050659629,-500.0,0.00056712,120]
[342693164,1732050659638,-150.0,0.00056739,14]
[342693165,1732050659648,-150.0,0.00056756,14]
[342693166,1732050659659,-150.0,0.00056761,30]
[342693167,1732050659669,-150.0,0.0005677,14]
[342693168,1732050659679,-150.0,0.00056778,14]
[342693169,1732050659688,-150.0,0.00056788,14]
[342693170,1732050659698,-1000.0,0.000568,7]
[342693171,1732050659707,-150.0,0.00056831,14]
[342693172,1732050659716,-150.0,0.00056843,30]
[342693173,1732050659725,-150.0,0.00056849,14]
[342693174,1732050659736,-150.0,0.00056857,14]
[342693175,1732050659745,-150.0,0.0005687,14]
[342693176,1732050659755,-150.0,0.00056871,14]
[342693177,1732050659765,-150.0,0.00056878,14]
[342693178,1732050659774,-150.0,0.00056882,14]
[342693179,1732050659785,-150.0,0.00056888,14]
[342693180,1732050659795,-1000.0,0.000569,7]
[342693181,1732050659805,-158.0,0.000569,74]
[342693182,1732050659814,-150.0,0.000569,60]
[342693183,1732050659823,-150.0,0.00056911,14]
[342693184,1732050659833,-150.0,0.0005694,14]
[342693185,1732050659842,-150.0,0.00056945,14]
[342693186,1732050659851,-150.0,0.00056957,14]
[342693187,1732050659860,-150.0,0.00056958,30]
[342693188,1732050659870,-150.0,0.0005696,14]
[342693189,1732050659879,-150.0,0.0005698,14]
[342693190,1732050659889,-150.0,0.00056983,14]
[342693191,1732050659899,-500.0,0.00056986,120]
[342693192,1732050659908,-500.0,0.00056986,120]
[342693193,1732050659918,-500.0,0.00056986,120]
[342693194,1732050659927,-500.0,0.00056986,120]
[342693195,1732050659937,-500.0,0.00056986,120]
[342693196,1732050659947,-500.0,0.00056986,120]
[342693197,1732050659957,-500.0,0.00056986,120]
[342693198,1732050659967,-598.73,0.00056986,120]
[342693199,1732050659976,-500.0,0.00056986,120]
[342693200,1732050659986,-556.36,0.00056986,120]
[342693201,1732050659995,-523.73,0.00056986,120]
[342693202,1732050660005,-500.0,0.00056986,120]
[342693203,1732050660016,-500.0,0.00056986,120]
[342693204,1732050660025,-500.0,0.00056986,120]
[342693205,1732050660034,-500.0,0.00056986,120]
[342693206,1732050660044,-500.0,0.00056986,120]
[342693207,1732050660054,-500.0,0.00056986,120]
[342693208,1732050660065,-659.45,0.00056986,120]
[342693209,1732050660075,-500.0,0.00056986,120]
[342693210,1732050660086,-500.0,0.00056986,120]
[342693211,1732050660095,-500.0,0.00056986,120]
[342693212,1732050660105,-563.9,0.00056986,120]
[342693213,1732050660114,-884.09,0.00056986,120]
[342693214,1732050660124,-500.0,0.00056986,120]
[342693215,1732050660133,-500.0,0.00056986,120]
[342693216,1732050660142,-500.0,0.00056986,120]
[342693217,1732050660152,-500.0,0.00056986,120]
[342693218,1732050660162,-500.0,0.00056986,120]
[342693219,1732050660171,-500.0,0.00056986,120]
[342693220,1732050660180,-1060.45,0.00056986,120]
[342693221,1732050660190,-714.63,0.00056986,120]
[342693222,1732050660200,-500.0,0.00056986,120]
[342693223,1732050660210,-172.38756948,0.00056986,120]
[342693224,1732050660219,-500.0,0.00056986,120]
[342693225,1732050660228,-626.2,0.00056986,120]
[342693226,1732050660239,-150.0,0.00056986,120]
[342693227,1732050660248,-841.66,0.00056986,120]
[342693228,1732050660258,-500.0,0.00056986,120]
[342693229,1732050660267,-1645.36,0.00056986,120]
[342693230,1732050660277,-597.45,0.00056986,120]
[342693231,1732050660287,-868.18,0.00056986,120]
[342693232,1732050660298,-992.87,0.00056986,120]
[342693233,1732050660307,-500.0,0.00056986,120]
[342693234,1732050660318,-500.0,0.00056986,120]
[342693235,1732050660327,-639.36,0.00056986,120]
[342693236,1732050660337,-500.0,0.00056986,120]
[342693237,1732050660347,-500.0,0.00056986,120]
[342693238,1732050660357,-561.40049134,0.00056986,120]
[342693239,1732050660367,-500.0,0.00056986,120]
[342693240,1732050660377,-799.42,0.00056986,120]
[342693241,1732050660386,-500.0,0.00056986,120]
[342693242,1732050660396,-643.56880534,0.00056986,120]
[342693243,1732050660406,-500.0,0.00056986,120]
[342693244,1732050660415,-500.0,0.00056986,120]
[342693245,1732050660425,-500.0,0.00056986,120]
[342693246,1732050660434,-1334.27,0.00056986,60]
[342693247,1732050660444,-500.0,0.00056986,120]
[342693248,1732050660453,-500.0,0.00056986,7]
[342693249,1732050660463,-500.0,0.00056986,120]
[342693250,1732050660472,-500.0,0.00056986,120]
[342693251,1732050660482,-450.2,0.00056986,120]
[342693252,1732050660494,-500.0,0.00056986,30]
[342693253,1732050660503,-952.42,0.00056986,120]
[342693254,1732050660514,-500.0,0.00056986,120]
[342693255,1732050660528,-500.0,0.00056986,120]
[342693256,1732050660538,-500.0,0.00056986,120]
[342693257,1732050660547,-500.0,0.00056986,120]
[342693258,1732050660557,-500.0,0.00056986,120]
[342693259,1732050660567,-500.0,0.00056986,120]
[342693260,1732050660577,-500.0,0.00056986,120]
[342693261,1732050660586,-1675.25,0.00056986,120]
[342693262,1732050660598,-7124.47,0.00056986,120]
[342693263,1732050660607,-211.16,0.00056986,120]
[342693264,1732050660617,-500.0,0.00056986,120]
[342693265,1732050660627,-805.1,0.00056986,120]
[342693266,1732050660636,-500.0,0.00056986,120]
[342693267,1732050660646,-941.71,0.00056986,120]
[342693268,1732050660656,-500.0,0.00056986,120]
[342693269,1732050660665,-500.0,0.00056986,120]
[342693270,1732050660675,-610.06,0.00056986,120]
[342693271,1732050660684,-500.0,0.00056986,120]
[342693272,1732050660693,-500.0,0.00056986,120]
[342693273,1732050660703,-2000.0,0.00056986,120]
[342693274,1732050660713,-500.0,0.00056986,120]
[342693275,1732050660723,-150.0,0.00056989,14]
[342693276,1732050660732,-150.0,0.00056996,14]
[342693277,1732050660746,-150.0,0.00056996,14]
[342693278,1732050660755,-435.64288356,0.00056999,120]
[342693279,1732050660766,-7272.23018555,0.00057,57]
[342693280,1732050660800,1272.45,0.0004,120]
[342693281,1732050660813,-454.26911453,0.00054466,120]
[342693282,1732050660829,-45.73088547,0.00054466,120]
[342693283,1732050660838,-42727.76981445,0.00057,57]
[342693284,1732050660848,-50000.0,0.00057,47]
[342693285,1732050660857,-251.719911,0.00057,120]
[342693286,1732050660867,-347.068098,0.00057,120]
[342693287,1732050660876,-347.068098,0.00057,120]
[342693288,1732050660885,-750.0,0.00057,2]
[342693289,1732050660895,-60072.1146079,0.00057,120]
[342693290,1732050660905,-3574.0,0.00057,60]
[342693291,1732050661013,-10000.0,0.00057,120]
[342693292,1732050661023,-1365.0,0.00057,7]
[342693293,1732050661032,-2000.0,0.00057002,15]
[342693294,1732050661042,-200.0,0.00057002,15]
[342693295,1732050661052,-150.0,0.00057009,14]
[342693296,1732050661062,-150.0,0.00057018,14]
[342693297,1732050661071,-150.0,0.00057021,14]
[342693298,1732050661081,-150.0,0.00057029,14]
[342693299,1732050661090,-150.0,0.0005705,14]
[342693300,1732050661100,-150.0,0.00057059,14]
[342693301,1732050661109,-150.0,0.00057065,14]
[342693302,1732050661119,-150.0,0.00057071,14]
[342693303,1732050661129,-158.1305081,0.00057071,15]
[342693304,1732050661139,-150.0,0.00057072,14]
[342693305,1732050661149,-150.0,0.00057075,14]
[342693306,1732050661160,-150.0,0.00057076,14]
[342693307,1732050661170,-150.0,0.00057078,14]
[342693308,1732050661179,-150.0,0.00057092,14]
[342693309,1732050661189,-150.0,0.00057099,14]
[342693310,1732050661198,-150.0,0.00057101,14]
[342693311,1732050661207,-150.0,0.00057102,14]
[342693312,1732050661217,-150.0,0.00057111,14]
[342693313,1732050661226,-150.0,0.00057111,14]
[342693314,1732050661236,-150.0,0.00057112,14]
[342693315,1732050661251,-150.0,0.00057114,14]
[342693316,1732050661261,-150.0,0.00057118,14]
[342693317,1732050661270,-150.0,0.00057143,14]
[342693318,1732050661279,-1116.0,0.0005715,30]
[342693319,1732050661290,-150.0,0.00057154,14]
[342693320,1732050661299,-150.0,0.00057154,14]
[342693321,1732050661309,-150.0,0.00057168,14]
[342693322,1732050661319,-150.0,0.00057185,14]
[342693323,1732050661329,-150.0,0.00057191,14]
[342693324,1732050661338,-150.0,0.00057192,14]
[342693325,1732050661348,-150.0,0.00057206,14]
[342693326,1732050661358,-150.0,0.00057216,14]
[342693327,1732050661367,-150.0,0.00057221,14]
[342693328,1732050661377,-150.0,0.00057223,14]
[342693329,1732050661386,-150.0,0.00057226,14]
[342693330,1732050661395,-150.0,0.00057226,14]
[342693331,1732050661406,-150.0,0.00057236,14]
[342693332,1732050661416,-150.0,0.0005724,14]
[342693333,1732050661425,-150.0,0.00057245,14]
[342693334,1732050661434,-150.0,0.00057256,14]
[342693335,1732050661444,-506.15,0.00057259,120]
[342693336,1732050661453,-500.0,0.0005726,120]
[342693337,1732050661463,-500.0,0.0005726,120]
[342693338,1732050661472,-500.0,0.0005726,120]
[342693339,1732050661483,-500.0,0.0005726,120]
[342693340,1732050661498,-500.0,0.0005726,120]
[342693341,1732050661508,-500.0,0.0005726,120]
[342693342,1732050661521,-500.0,0.0005726,120]
[342693343,1732050661530,-598.73,0.0005726,120]
[342693344,1732050661539,-500.0,0.0005726,120]
[342693345,1732050661549,-556.36,0.0005726,120]
[342693346,1732050661559,-500.0,0.0005726,120]
[342693347,1732050661568,-463.11,0.0005726,120]
[342693348,1732050661578,-500.0,0.0005726,120]
[342693349,1732050661587,-500.0,0.0005726,120]
[342693350,1732050661599,-500.0,0.0005726,120]
[342693351,1732050661609,-500.0,0.0005726,120]
[342693352,1732050661619,-659.45,0.0005726,120]
[342693353,1732050661629,-500.0,0.0005726,120]
[342693354,1732050661639,-500.0,0.0005726,120]
[342693355,1732050661648,-500.0,0.0005726,120]
[342693356,1732050661658,-563.9,0.0005726,120]
[342693357,1732050661667,-884.09,0.0005726,120]
[342693358,1732050661676,-500.0,0.0005726,120]
[342693359,1732050661687,-296.73996777,0.0005726,120]
[342693360,1732050661695,-500.0,0.0005726,120]
[342693361,1732050661704,-500.0,0.0005726,120]
[342693362,1732050661713,-500.0,0.0005726,120]
[342693363,1732050661723,-500.0,0.0005726,120]
[342693364,1732050661732,-1060.45,0.0005726,120]
[342693365,1732050661747,-714.63,0.0005726,120]
[342693366,1732050661757,-500.0,0.0005726,120]
[342693367,1732050661766,-500.0,0.0005726,120]
[342693368,1732050661776,-626.2,0.0005726,120]
[342693369,1732050661785,-259.01716086,0.0005726,120]
[342693370,1732050661794,-841.66,0.0005726,120]
[342693371,1732050661804,-371.78619169,0.0005726,120]
[342693372,1732050661814,-1645.36,0.0005726,120]
[342693373,1732050661823,-597.45,0.0005726,120]
[342693374,1732050661832,-868.18,0.0005726,120]
[342693375,1732050661842,-992.87,0.0005726,120]
[342693376,1732050661851,-500.0,0.0005726,120]
[342693377,1732050661869,-500.0,0.0005726,120]
[342693378,1732050661881,-639.36,0.0005726,120]
[342693379,1732050661890,-556.97891358,0.0005726,120]
[342693380,1732050661901,-500.0,0.0005726,120]
[342693381,1732050661911,-500.0,0.0005726,120]
[342693382,1732050661922,-799.42,0.0005726,120]
[342693383,1732050661932,-503.01,0.0005726,120]
[342693384,1732050661942,-500.0,0.0005726,120]
[342693385,1732050661952,-500.0,0.0005726,120]
[342693386,1732050661962,-520.41,0.0005726,120]
[342693387,1732050661972,-1334.27,0.0005726,60]
[342693388,1732050661982,-500.0,0.0005726,120]
[342693389,1732050661996,-500.0,0.0005726,7]
[342693390,1732050662006,-220.89599685,0.0005726,120]
[342693391,1732050662015,-500.0,0.0005726,120]
[342693392,1732050662025,-500.0,0.0005726,30]
[342693393,1732050662035,-952.42,0.0005726,120]
[342693394,1732050662046,-500.0,0.0005726,120]
[342693395,1732050662056,-500.0,0.0005726,120]
[342693396,1732050662066,-500.0,0.0005726,120]
[342693397,1732050662076,-500.0,0.0005726,120]
[342693398,1732050662086,-500.0,0.0005726,120]
[342693399,1732050662095,-500.0,0.0005726,120]
[342693400,1732050662105,-641.87374185,0.0005726,120]
[342693401,1732050662115,-1675.25,0.0005726,120]
[342693402,1732050662125,-7124.47,0.0005726,120]
[342693403,1732050662135,-500.0,0.0005726,120]
[342693404,1732050662146,-805.1,0.0005726,120]
[342693405,1732050662156,-500.0,0.0005726,120]
[342693406,1732050662166,-941.71,0.0005726,120]
[342693407,1732050662175,-500.0,0.0005726,120]
[342693408,1732050662186,-610.13937663,0.0005726,120]
[342693409,1732050662195,-610.06,0.0005726,120]
[342693410,1732050662205,-500.0,0.0005726,120]
[342693411,1732050662215,-500.0,0.0005726,120]
[342693412,1732050662225,-531.98269444,0.0005726,120]
[342693413,1732050662235,-500.0,0.0005726,120]
[342693414,1732050662250,-150.0,0.00057261,14]
[342693415,1732050662260,-150.0,0.00057305,14]
[342693416,1732050662269,-863.10510645,0.00057329,120]
[342693417,1732050662279,-200.0,0.0005733,120]
[342693418,1732050662289,-150.0,0.00057331,14]
[342693419,1732050662299,-200.0,0.00057335,120]
[342693420,1732050662309,-1027.89691603,0.00057337,120]
[342693421,1732050662318,-535.87201213,0.00057338,120]
[342693422,1732050662328,-150.0,0.00057339,14]
[342693423,1732050662338,-2411.22466744,0.00057342,120]
[342693424,1732050662348,-863.10510645,0.00057344,120]
[342693425,1732050662358,-1089.27878054,0.00057344,120]
[342693426,1732050662368,-1089.27878054,0.00057347,120]
[342693427,1732050662378,-150.0,0.00057347,14]
[342693428,1732050662387,-1027.89691603,0.00057352,120]
[342693429,1732050662396,-1027.89691603,0.00057357,120]
[342693430,1732050662406,-150.0,0.00057357,14]
[342693431,1732050662415,-150.0,0.00057362,14]
[342693432,1732050662424,-1027.89691603,0.00057363,120]
[342693433,1732050662433,-150.0,0.00057364,14]
[342693434,1732050662442,-863.10510645,0.00057367,120]
[342693435,1732050662452,-150.0,0.00057368,14]
[342693436,1732050662461,-150.0,0.00057373,14]
[342693437,1732050662471,-150.0,0.00057376,14]
[342693438,1732050662481,-179.83157374,0.00057382,14]
[342693439,1732050662497,-150.0,0.00057384,30]
[342693440,1732050662510,-2411.22466744,0.00057385,120]
[342693441,1732050662521,-2411.22466744,0.00057386,120]
[342693442,1732050662531,-535.87201213,0.00057387,120]
[342693443,1732050662540,-150.0,0.00057387,14]
[342693444,1732050662550,-1089.27878054,0.00057391,120]
[342693445,1732050662561,-1089.27878054,0.00057396,120]
[342693446,1732050662570,-863.10510645,0.00057396,120]
[342693447,1732050662580,-535.87201213,0.000574,120]
[342693448,1732050662591,-150.0,0.00057404,14]
[342693449,1732050662601,-150.0,0.00057406,14]
[342693450,1732050662611,-150.0,0.00057407,14]
[342693451,1732050662621,-1027.89691603,0.00057408,120]
[342693452,1732050662631,-200.0,0.00057409,120]
[342693453,1732050662640,-150.0,0.00057416,30]
[342693454,1732050662650,-535.87201213,0.00057417,120]
[342693455,1732050662660,-150.0,0.00057422,14]
[342693456,1732050662669,-200.0,0.00057424,120]
[342693457,1732050662679,-1089.27878054,0.00057425,120]
[342693458,1732050662688,-150.0,0.00057425,14]
[342693459,1732050662698,-2411.22466744,0.00057439,120]
[342693460,1732050662707,-150.0,0.00057441,14]
[342693461,1732050662717,-535.87201213,0.00057443,120]
[342693462,1732050662727,-2411.22466744,0.00057445,120]
[342693463,1732050662740,-150.0,0.00057446,14]
[342693464,1732050662752,-150.0,0.00057447,14]
[342693465,1732050662761,-150.0,0.00057448,14]
[342693466,1732050662771,-863.10510645,0.00057451,120]
[342693467,1732050662780,-150.0,0.00057456,14]
[342693468,1732050662790,-150.0,0.00057456,14]
[342693469,1732050662800,-151.0,0.0005746,120]
[342693470,1732050662810,-150.0,0.0005746,14]
[342693471,1732050662819,-150.0,0.00057462,14]
[342693472,1732050662830,-2411.22466744,0.00057462,120]
[342693473,1732050662840,-150.0,0.00057465,30]
[342693474,1732050662851,-863.10510645,0.00057472,120]
[342693475,1732050662862,-200.0,0.00057472,120]
[342693476,1732050662872,-150.0,0.00057483,14]
[342693477,1732050662883,-1089.27878054,0.00057487,120]
[342693478,1732050662894,-1027.89691603,0.0005749,120]
[342693479,1732050662905,-150.0,0.00057496,14]
[342693480,1732050662916,-535.87201213,0.00057496,120]
[342693481,1732050663047,-5000.0,0.00057498,120]
[342693482,1732050663059,-10000.0,0.000575,120]
[342693483,1732050663069,-150.0,0.000575,120]
[342693484,1732050663079,-151.0,0.000575,120]
[342693485,1732050663089,-151.0,0.000575,120]
[342693486,1732050663099,-151.0,0.000575,120]
[342693487,1732050663109,-151.0,0.000575,120]
[342693488,1732050663118,-1848.33267692,0.000575,28]
[342693489,1732050663128,-150.0,0.00057508,14]
[342693490,1732050663137,-500.0,0.00057534,120]
[342693491,1732050663147,-500.0,0.00057534,120]
[342693492,1732050663157,-298.54,0.00057534,120]
[342693493,1732050663166,-182.74601862,0.00057534,120]
[342693494,1732050663176,-500.0,0.00057534,120]
[342693495,1732050663185,-500.0,0.00057534,120]
[342693496,1732050663196,-500.0,0.00057534,120]
[342693497,1732050663206,-598.73,0.00057534,120]
[342693498,1732050663215,-500.0,0.00057534,120]
[342693499,1732050663226,-556.36,0.00057534,120]
[342693500,1732050663235,-500.0,0.00057534,120]
[342693501,1732050663250,-500.0,0.00057534,120]
[342693502,1732050663260,-500.0,0.00057534,120]
[342693503,1732050663270,-500.0,0.00057534,120]
[342693504,1732050663280,-500.0,0.00057534,120]
[342693505,1732050663291,-659.45,0.00057534,120]
[342693506,1732050663301,-151.0,0.00057534,120]
[342693507,1732050663311,-500.0,0.00057534,120]
[342693508,1732050663320,-151.0,0.00057534,120]
[342693509,1732050663331,-500.0,0.00057534,120]
[342693510,1732050663341,-500.0,0.00057534,120]
[342693511,1732050663351,-563.9,0.00057534,120]
[342693512,1732050663361,-884.09,0.00057534,120]
[342693513,1732050663371,-500.0,0.00057534,120]
[342693514,1732050663380,-500.0,0.00057534,120]
[342693515,1732050663390,-500.0,0.00057534,120]
[342693516,1732050663399,-500.0,0.00057534,120]
[342693517,1732050663409,-500.0,0.00057534,120]
[342693518,1732050663419,-1060.45,0.00057534,120]
[342693519,1732050663428,-714.63,0.00057534,120]
[342693520,1732050663438,-500.0,0.00057534,120]
[342693521,1732050663448,-500.0,0.00057534,120]
[342693522,1732050663457,-626.2,0.00057534,120]
[342693523,1732050663467,-841.66,0.00057534,120]
[342693524,1732050663476,-1645.36,0.00057534,120]
[342693525,1732050663485,-597.45,0.00057534,120]
[342693526,1732050663499,-868.18,0.00057534,120]
[342693527,1732050663510,-151.0,0.00057534,120]
[342693528,1732050663521,-992.87,0.00057534,120]
[342693529,1732050663534,-151.0,0.00057534,120]
[342693530,1732050663543,-500.0,0.00057534,120]
[342693531,1732050663553,-500.0,0.00057534,120]
[342693532,1732050663563,-151.0,0.00057534,120]
[342693533,1732050663573,-639.36,0.00057534,120]
[342693534,1732050663583,-500.0,0.00057534,120]
[342693535,1732050663592,-500.0,0.00057534,120]
[342693536,1732050663603,-799.42,0.00057534,120]
[342693537,1732050663613,-500.0,0.00057534,120]
[342693538,1732050663622,-500.0,0.00057534,120]
[342693539,1732050663632,-1334.27,0.00057534,60]
[342693540,1732050663642,-500.0,0.00057534,120]
[342693541,1732050663651,-500.0,0.00057534,7]
[342693542,1732050663661,-500.0,0.00057534,120]
[342693543,1732050663670,-500.0,0.00057534,30]
[342693544,1732050663680,-952.42,0.00057534,120]
[342693545,1732050663690,-500.0,0.00057534,120]
[342693546,1732050663699,-500.0,0.00057534,120]
[342693547,1732050663709,-500.0,0.00057534,120]
[342693548,1732050663718,-500.0,0.00057534,120]
[342693549,1732050663728,-500.0,0.00057534,120]
[342693550,1732050663737,-250.52,0.00057534,120]
[342693551,1732050663752,-1675.25,0.00057534,120]
[342693552,1732050663762,-7124.47,0.00057534,120]
[342693553,1732050663772,-500.0,0.00057534,120]
[342693554,1732050663782,-805.1,0.00057534,120]
[342693555,1732050663792,-416.53101672,0.00057534,120]
[342693556,1732050663801,-941.71,0.00057534,120]
[342693557,1732050663811,-500.0,0.00057534,120]
[342693558,1732050663820,-610.06,0.00057534,120]
[342693559,1732050663830,-500.0,0.00057534,120]
[342693560,1732050663839,-500.0,0.00057534,120]
[342693561,1732050663849,-500.0,0.00057534,120]
[342693562,1732050663858,-1476.48543679,0.00057559,120]
[342693563,1732050663868,-258.9129285,0.00057559,2]
[342693564,1732050663877,-4351.9209955,0.00057559,2]
[342693565,1732050663887,-2805.3428253,0.00057559,2]
[342693566,1732050663896,-13899.1973018,0.00057559,2]
[342693567,1732050663906,-2674.4653189,0.00057559,2]
[342693568,1732050663916,-106963.43304378,0.0005756,120]
[342693569,1732050663931,-393.03989,0.0005756,120]
[342693570,1732050663942,-1662.459,0.0005756,120]
[342693571,1732050663956,-4330.38515635,0.0005756,120]
[342693572,1732050663965,-151.0,0.0005756,120]
[342693573,1732050663974,-151.0,0.0005756,120]
[342693574,1732050663983,-152.599657,0.0005756,110]
[342693575,1732050664000,-151.0,0.0005756,120]
[342693576,1732050664009,-151.0,0.0005756,120]
[342693577,1732050664018,-151.0,0.0005756,120]
[342693578,1732050664028,-151.0,0.0005756,120]
[342693579,1732050664037,-150.0,0.0005756,120]
[342693580,1732050664046,-150.0,0.0005756,120]
[342693581,1732050664055,-150.0,0.0005756,120]
[342693582,1732050664064,-150.0,0.0005756,120]
[342693583,1732050664073,-240.51632409,0.0005756,120]
[342693584,1732050664083,-404.394849,0.0005756,120]
[342693585,1732050664092,-151.0,0.0005756,120]
[342693586,1732050664101,-404.394849,0.0005756,120]
[342693587,1732050664111,-151.0,0.0005756,120]
[342693588,1732050664120,-246.508874,0.0005756,120]
[342693589,1732050664130,-246.508874,0.0005756,120]
[342693590,1732050664139,-151.0,0.0005756,120]
[342693591,1732050664148,-150.0,0.0005756,120]
[342693592,1732050664157,-150.83341696,0.0005756,120]
[342693593,1732050664167,-500.0,0.0005756,120]
[342693594,1732050664176,-500.0,0.0005756,120]
[342693595,1732050664186,-500.0,0.0005756,120]
[342693596,1732050664195,-500.0,0.0005756,120]
[342693597,1732050664205,-500.0,0.0005756,120]
[342693598,1732050664215,-500.0,0.0005756,120]
[342693599,1732050664224,-500.0,0.0005756,120]
[342693600,1732050664233,-500.0,0.0005756,120]
[342693601,1732050664248,-696.90735839,0.0005756,120]
[342693602,1732050664258,-160.98953081,0.0005756,120]
[342693603,1732050664267,-150.0,0.0005756,120]
[342693604,1732050664277,-150.0,0.0005756,120]
[342693605,1732050664287,-166.30682066,0.0005756,120]
[342693606,1732050664296,-150.0,0.0005756,71]
[342693607,1732050664305,-257.41768905,0.0005756,71]
[342693608,1732050664315,-150.0,0.0005756,120]
[342693609,1732050664325,-150.0,0.0005756,120]
[342693610,1732050664334,-150.0,0.0005756,120]
[342693611,1732050664344,-198.3231476,0.0005756,120]
[342693612,1732050664353,-1047.47345349,0.0005756,120]
[342693613,1732050664573,-73811.84041157,0.0005756,120]
[342693614,1732050664584,-1114.19620494,0.0005756,120]
[342693615,1732050664597,-1021.29997701,0.0005756,120]
[342693616,1732050664609,-1141.6,0.0005756,120]
[342693617,1732050665035,12500.0,0.0004,120]
[342693618,1732050665091,10448.22,0.00040375,120]
[342693619,1732051508872,20338.86404187,0.0001,2]
[342693620,1732051535144,-240.29231214,0.00011,2]
[342693621,1732051556082,73261.13595813,9.336e-05,2]
[342693622,1732051556110,168989.47577597,9.336e-05,2]
[342693623,1732051628703,13634.584317,9e-05,2]
[342693624,1732051631880,200.0,9.6e-05,2]
[342693625,1732051635126,-600.0,0.000106,3]
[342693626,1732051635148,-1200.0,0.000107,3]
[342693627,1732051635169,-300.0,0.00010999,2]
[342693628,1732051635189,-150.0,0.00010999,2]
[342693629,1732051635211,-1650.75690135,0.00011,2]
[342693630,1732051638110,-1800.0,0.000108,3]
[342693631,1732051638132,-13202.13439875,0.00011,2]
[342693632,1732051638161,-197.63579693,0.00011,2]
[342693634,1732051683454,748.57509907,0.0001,2]
[342693635,1732051709410,19501077.8453204,0.0001,2]
[342693654,1732051751114,-300.0,0.000106,3]
[342693655,1732051751137,-700.0,0.000107,3]
[342693656,1732051751159,-1100.0,0.000108,3]
[342693657,1732051751180,-795.0,0.00010877,2]
[342693658,1732051751202,-2263.74747167,0.00010877,2]
[342693659,1732051757095,-4798.83369991,0.00010877,2]
[342693660,1732051763218,-80793.41882842,0.00010877,2]
[342693661,1732051763238,-1899.0,0.0001089,2]
[342693662,1732051763259,-2500.0,0.000109,3]
[342693663,1732051763281,-1500.0,0.000109,3]
[342693664,1732051763300,-1234.128767,0.000109,2]
[342693665,1732051763321,-500.0,0.00010973,2]
[342693666,1732051763343,-160456.84940458,0.00011,2]
[342693667,1732051763370,-27108.4366,0.00011,2]
[342693669,1732051768086,-37130.00987021,0.00011,2]
[342693670,1732051771102,-24128.59428575,0.00011,2]
[342693671,1732051773171,-409030.9888,0.00011,2]
[342693673,1732051802811,150.0,0.0001,2]